Cogmind - Beta 15 @@@ ROGUE MODE // 2025.05.05 @ 21:46:11 // Winter2019/RPGLIKE Player: Quartz Result: Self-destructed Performance ------------- Evolutions (2) 1000 Regions Visited (4) 800 Robots Destroyed (30) 150 Value Destroyed (1002) 1002 Prototype IDs (0) 0 Alien Tech Used (0) 0 Bonus (0) 0 TOTAL SCORE: 2952 Bonus ------- None Cogmind --------- Core Integrity 162/1000 Matter 142/300 Energy 100/100 System Corruption 0% Temperature Cool (0) Movement Walking (120) Location -8/Materials Parts ------- > --- POWER (1) -------- Subdweller Power Source > --- PROPULSION (2) --- Carbon-fiber Leg (fused) > --- UTILITY (3) ------ Signal Interpreter Hacking Suite Recalibrator > --- WEAPON (2) ------- Pulse Rifle (fused) Battle Cannon > --- INVENTORY (4) ---- Hardened Medium Armor Plating Scrap Shield Rocket Launcher Peak State ------------ > --- POWER ------------ Light Nuclear Core > --- PROPULSION ------- Carbon-fiber Leg Carbon-fiber Leg > --- UTILITY ---------- Signal Interpreter Hardened Medium Armor Plating Hacking Suite > --- WEAPON ----------- Pulse Rifle Minigun > --- INVENTORY -------- High-capacity Matter Pod Recalibrator Rocket Launcher [Rating: 22] Favorites ----------- Power Light Nuclear Core Engine Light Ion Engine Power Core Light Nuclear Core Propulsion Carbon-fiber Leg Leg Carbon-fiber Leg Utility Signal Interpreter Device Recalibrator Processor Signal Interpreter Hackware Hacking Suite Protection Hardened Medium Armor Plating Weapon Pulse Rifle Energy Gun Pulse Rifle Ballistic Gun Assault Rifle Ballistic Cannon Battle Cannon Slashing Weapon Mining Claw Build | -11 -10 -10 -10 -8 ------- Run | Yrd Mat Min Sub Mat Slots Evolved 4 | 1 . 2 1 . Power . | . . . . . Propulsion 1 | 1 . . . . Utility 2 | . . 1 1 . Weapon 1 | . . 1 . . Parts Attached 18 | 4 2 8 4 . Power 3 | 1 . 1 1 . Engine 2 | 1 . . 1 . Core 1 | . . 1 . . Reactor . | . . . . . Propulsion 4 | 2 . 2 . . Treads . | . . . . . Leg 4 | 2 . 2 . . Wheel . | . . . . . Hover . | . . . . . Flight . | . . . . . Utility 5 | . 1 2 2 . Device 1 | . . . 1 . Storage . | . . . . . Processor 1 | . 1 . . . Hackware 1 | . . 1 . . Protection 2 | . . 1 1 . Artifact . | . . . . . Weapon 6 | 1 1 3 1 . Energy Gun 2 | . . 2 . . Energy Cannon . | . . . . . Ballistic Gun 2 | 1 . 1 . . Ballistic Cannon 1 | . . . 1 . Launcher . | . . . . . Special Weapon . | . . . . . Impact Weapon . | . . . . . Slashing Weapon 1 | . 1 . . . Piercing Weapon . | . . . . . Special Melee Weapon . | . . . . . Unidentified Prototypes . | . . . . . Corrupted Parts 4 | . . 4 . . System Corruption 23 | . . 23 . . Parts Lost 1 | . . . 1 . Power 1 | . . . 1 . Propulsion . | . . . . . Utility . | . . . . . Weapon . | . . . . . Highest Loss Streak 1 | . . . 1 . To Critical Strikes . | . . . . . Average Backups 3 | . 2 3 3 3 Power . | . . . . . Propulsion . | . . . . . Utility 2 | . 2 3 2 2 Weapon . | . . . 1 1 Tool/Special . | . . . . . Unused Backups 4 | . 1 . 1 2 Power . | . . . . . Propulsion . | . . . . . Utility 3 | . 1 . 1 1 Weapon 1 | . . . . 1 Tool/Special . | . . . . . Average Slot Usage (%) 97 | . 95 94 99 87 Engine 9 | . 20 6 3 12 Core 5 | . . 8 8 . Leg 30 | . 40 28 24 12 Device 3 | . . . 7 12 Processor 13 | . 15 14 12 12 Hackware 7 | . . 12 12 12 Protection 2 | . . . 4 . Energy Gun 7 | . . 7 12 12 Ballistic Gun 9 | . 19 14 . . Ballistic Cannon 5 | . . . 11 12 Peak Build Rating 22 | 4 5 20 22 18 Average Rating 14 | 2 4 12 21 18 On Entrance 9 | . 4 5 20 18 Naked Turns . | . . . . . Heaviest Build 19 | 5 5 11 19 12 Greatest Support 30 | 20 20 30 30 15 Greatest Overweight (x) . | . . . . . Average Overweight (x) . | . . . . . Largest Inventory Capacity 4 | 4 4 4 4 4 Average Capacity 4 | 4 4 4 4 4 Most Carried 4 | 4 4 4 4 4 Average Carried 3 | . 2 3 3 4 Final Capacity 4 | 4 4 4 4 4 Final Carried 4 | . 4 4 4 4 Class Distribution -------------------- 72% | Mutant 27% | Scavenger-Mutant Dominant Class ---------------- Mutant | -10/Materials Mutant | -10/Mines Scavenger-Mutant | -10/Subcaves Mutant | -8/Materials Resources | -11 -10 -10 -10 -8 ----------- Run | Yrd Mat Min Sub Mat Matter Collected 1263 | 173 522 121 447 . Remotely . | . . . . . Salvage Created 1091 | . 426 183 482 . Parts 64 | . 24 10 30 . Haulers Intercepted 2 | . 2 . . . Recyclers Shooed 1 | . 1 . . . Parts Field Recycled . | . . . . . Retrieved Matter . | . . . . . Parts Self-Destructed 5 | . . . 5 . Prevented . | . . . . . Kills | -11 -10 -10 -10 -8 ------- Run | Yrd Mat Min Sub Mat Combat Hostiles Destroyed 26 | . 9 4 13 . Guns 21 | . 9 4 8 . Cannons 5 | . . . 5 . Classes Destroyed 6 | . 5 1 . . Hauler 2 | . 2 . . . Mechanic 1 | . 1 . . . Operator 1 | . 1 . . . Swarmer 2 | . . 2 . . Grunt 10 | . 8 2 . . Subdweller 14 | . 1 . 13 . Best Kill Streak 4 | . 4 2 2 . Combat Bots Only 3 | . 3 2 2 . Max Kills in Single Turn 1 | . 1 1 1 . Gunslinging . | . . . . . Exploded . | . . . . . Melee . | . . . . . Uniques/NPCs Destroyed . | . . . . . Combat | -11 -10 -10 -10 -8 -------- Run | Yrd Mat Min Sub Mat Hostile Shots Fired 172 | . 60 15 97 . Missed 49 | . 15 4 30 . Hits 123 | . 45 11 67 . Projectile 123 | . 45 11 67 . Critical Strikes 3 | . 2 . 1 . Damage Taken 2261 | . 587 126 1548 . Core 1750 | . 465 100 1185 . Absorbed by Shields . | . . . . . Redirected to Core 1434 | . 403 81 950 . Core Remaining (%) 58 | 100 . . 16 . Volleys Fired 169 | . 83 9 77 . Largest 2 | . 1 1 2 . Hottest 96 | . 20 20 96 . Shots Fired 231 | . 83 10 138 . Gun 170 | . 83 10 77 . Cannon 61 | . . . 61 . Launcher . | . . . . . Special . | . . . . . Kinetic 170 | . 83 9 78 . Thermal 61 | . . 1 60 . Explosive . | . . . . . Electromagnetic . | . . . . . Robot Hit Streak 14 | . 13 5 14 . Robot Miss Streak 4 | . 4 1 4 . Penetration Max . | . . . . . Secondary Targets . | . . . . . Shots Hit Robots 154 | . 56 7 91 . Core Hits 59 | . 24 7 28 . Critical Kills . | . . . . . Critical Parts Destroyed 1 | . 1 . . . Critical Strikes 6 | . 1 . 5 . Burn 4 | . . . 4 . Destroy 1 | . 1 . . . Blast 1 | . . . 1 . Melee Attacks 1 | . 1 . . . Impact . | . . . . . Slashing 1 | . 1 . . . Piercing . | . . . . . Sneak Attacks . | . . . . . Combat Hostiles . | . . . . . Follow-up Attacks . | . . . . . Damage Inflicted 2447 | . 712 101 1634 . Guns 1764 | . 708 98 958 . Cannons 676 | . . . 676 . Explosions . | . . . . . Melee . | . . . . . Ramming 7 | . 4 3 . . Kinetic 1700 | . 708 98 894 . Thermal 740 | . . . 740 . Explosive . | . . . . . Electromagnetic . | . . . . . Impact . | . . . . . Slashing . | . . . . . Piercing . | . . . . . Highest Corruption 23 | . . 23 23 . Average Corruption 22 | . . 19 23 . Corruption Purged . | . . . . . Corruption Blocked . | . . . . . Effects 96 | . . 5 91 . Message Errors 16 | . . 1 15 . Matter Fused 22 | . . . 22 . Heat Flow Errors 11 | . . . 11 . Energy Discharges 11 | . . 1 10 . Parts Rejected 3 | . . . 3 . Parts Fused 3 | . . . 3 . Data Loss (minor) 10 | . . 1 9 . Data Loss (major) 4 | . . . 4 . Misfires 5 | . . 1 4 . Alerts 3 | . . 1 2 . Weapon Failures 8 | . . . 8 . Overload Shots . | . . . . . Overflow Damage . | . . . . . Projectiles . | . . . . . Explosions . | . . . . . Melee . | . . . . . Knockbacks 6 | . . 2 4 . Impact 1 | . . 1 . . Kinetic 4 | . . . 4 . Secondary 1 | . . 1 . . Self-Inflicted Damage . | . . . . . Shots . | . . . . . Rammed . | . . . . . Targets Rammed 5 | . 3 2 . . Kicked 5 | . 3 2 . . Crushed . | . . . . . Highest Temperature 253 | . 17 . 253 . Average Temperature 90 | . 7 . 100 . Received Heat Transfer 892 | . 369 45 478 . Effects 3 | . . . 3 . Interference 3 | . . . 3 . Siege Activations . | . . . . . Martial Activations . | . . . . . Shielding Activations . | . . . . . Robots Disrupted . | . . . . . Combat Hostiles . | . . . . . Robots Corrupted . | . . . . . Combat Hostiles . | . . . . . Parts Fried . | . . . . . Impact Corruptions . | . . . . . Robots Melted . | . . . . . Combat Hostiles . | . . . . . Parts Melted 2 | . . . 2 . Heat Transferred 1924 | . . . 1924 . Parts Sabotaged . | . . . . . Parts Stolen . | . . . . . Parts Stripped . | . . . . . Power Chain Reactions . | . . . . . Alert | -11 -10 -10 -10 -8 ------- Run | Yrd Mat Min Sub Mat Maximum Alert Level . | . . . . . Low Security (%) 100 | 100 100 100 . 100 Level 1 . | . . . . . Level 2 . | . . . . . Level 3 . | . . . . . Level 4 . | . . . . . Level 5 . | . . . . . High Security . | . . . . . Max Security . | . . . . . Peak Influence 82 | . 82 50 . . Initial . | . . . . . Average 17 | . 19 11 . . Influence Increases 390 | . 290 100 . . Destroy 0b10 Robot/C 240 | . 160 80 . . Destroy 0b10 Robot/NC 20 | . 20 . . . Destroy Leader 54 | . 34 20 . . Successful Hack 46 | . 46 . . . Disable Machine 15 | . 15 . . . Lose Combat Pursuer 15 | . 15 . . . Influence Decreases 390 | . 290 100 . . Time Decay 390 | . 290 100 . . Squads Dispatched 3 | . 3 . . . Investigation 2 | . 2 . . . Extermination . | . . . . . Reinforcement 1 | . 1 . . . Assault . | . . . . . Garrison . | . . . . . Intercept . | . . . . . Searches Triggered . | . . . . . Construction Impeded . | . . . . . Haulers Reinforced . | . . . . . Active Scanning Responses . | . . . . . Cargo Convoy Interrupts . | . . . . . Stealth | -11 -10 -10 -10 -8 --------- Run | Yrd Mat Min Sub Mat Distress Signals 3 | . 3 . . . Communications Jammed . | . . . . . Distress Signals . | . . . . . Times Spotted 33 | . 16 5 12 . Peak Tracking Total 3 | . 3 3 2 . Tactical Retreats 1 | . 1 . . . Traps | -11 -10 -10 -10 -8 ------- Run | Yrd Mat Min Sub Mat Traps Triggered 1 | . 1 . . . Indirectly . | . . . . . Trap Hack Attempts . | . . . . . Triggered . | . . . . . Disarmed . | . . . . . Reprogrammed . | . . . . . Reused . | . . . . . Traps Extracted . | . . . . . Installed . | . . . . . Triggered . | . . . . . Machines | -11 -10 -10 -10 -8 ---------- Run | Yrd Mat Min Sub Mat Machines Disabled 1 | . 1 . . . Max in Single Turn 1 | . 1 . . . Machines Repaired . | . . . . . Machines Dismantled . | . . . . . Machines Sabotaged . | . . . . . Overloaded Fab Kills . | . . . . . Hacking | -11 -10 -10 -10 -8 --------- Run | Yrd Mat Min Sub Mat Machines Accessed 8 | . 6 1 1 . Terminals 5 | . 5 . . . Fabricators . | . . . . . Repair Stations . | . . . . . Recycling Units 1 | . 1 . . . Scanalyzers . | . . . . . Garrison Access . | . . . . . Total Hacks 21 | . 18 1 2 . Successful 15 | . 12 1 2 . Failed 5 | . 5 . . . Catastrophic . | . . . . . Database Lockouts 1 | . 1 . . . Manual 17 | . 17 . . . Terminals 14 | . 14 . . . Fabricators . | . . . . . Repair Stations . | . . . . . Recycling Units 4 | . 4 . . . Scanalyzers . | . . . . . Garrison Access . | . . . . . Terminal Hacks 8 | . 5 1 2 . Record 2 | . . . 2 . Robot Analysis 2 | . 2 . . . Open Door 1 | . . 1 . . Terminal Index 1 | . 1 . . . Scanalyzer Index 1 | . 1 . . . Locate Traps 1 | . 1 . . . Fabricator Hacks . | . . . . . Repair Station Hacks . | . . . . . Recycling Unit Hacks 2 | . 2 . . . Retrieve Components 2 | . 2 . . . Scanalyzer . | . . . . . Garrison Access Hacks . | . . . . . Unauthorized Hacks 5 | . 5 . . . Terminals 3 | . 3 . . . Botnet 3 | . 3 . . . Fabricators . | . . . . . Repair Stations . | . . . . . Recycling Units 2 | . 2 . . . Reject 1 | . 1 . . . Mask 1 | . 1 . . . Scanalyzers . | . . . . . Garrison Access . | . . . . . Data Cores Recovered . | . . . . . Used . | . . . . . Hacking Detections 4 | . 4 . . . Full Trace Events 1 | . 1 . . . Feedback Events . | . . . . . Feedback Blocked . | . . . . . Robot Schematics Acquired . | . . . . . Robots Built . | . . . . . Authchips . | . . . . . Time . | . . . . . Total Robot Build Rating . | . . . . . Part Schematics Acquired . | . . . . . Parts Built . | . . . . . Authchips . | . . . . . Time . | . . . . . Total Part Build Rating . | . . . . . Parts Repaired . | . . . . . Time . | . . . . . Parts Recycled . | . . . . . Recycled Matter . | . . . . . Retrieved Matter . | . . . . . Retrieved Components . | . . . . . Parts Scanalyzed . | . . . . . Part Schematics Acquired . | . . . . . Parts Damaged . | . . . . . Bothacking | -11 -10 -10 -10 -8 ------------ Run | Yrd Mat Min Sub Mat Used RIF Installer . | . . . . . Robots Hacked . | . . . . . Non-combat . | . . . . . Combat . | . . . . . Robot Hacks Applied . | . . . . . Relay Couplers Released . | . . . . . Fabnet Peak Effective % . | . . . . . Robots Rewired . | . . . . . Allies Hacked . | . . . . . Hacks Repelled . | . . . . . Allies | -11 -10 -10 -10 -8 -------- Run | Yrd Mat Min Sub Mat Total Allies . | . . . . . Largest Group . | . . . . . Highest-Rated Group . | . . . . . Highest-Rated Ally . | . . . . . Total Orders . | . . . . . Ally Attacks . | . . . . . Total Damage . | . . . . . Kills . | . . . . . Allies Corrupted . | . . . . . Allies Melted . | . . . . . Intel | -11 -10 -10 -10 -8 ------- Run | Yrd Mat Min Sub Mat Active Infowar (turns) . | . . . . . Robot Analysis Total 2 | . 2 . . . Derelict Logs Recovered 2 | . . . 2 . Drone Launches . | . . . . . Drone Recoveries . | . . . . . Exploration | -11 -10 -10 -10 -8 ------------- Run | Yrd Mat Min Sub Mat Turns Passed 3370 | 37 1230 387 1702 14 Spaces Moved 2277 | 35 793 270 1168 11 Core 17 | 17 . . . . Treads . | . . . . . Legs 2260 | 18 793 270 1168 11 Wheels . | . . . . . Hover . | . . . . . Flight . | . . . . . Fastest Speed 50 | 50 120 120 120 120 Average Speed 119 | 86 120 120 120 120 Slowest Speed 120 | 120 120 120 120 120 Overloaded Moves . | . . . . . Propulsion Burnouts . | . . . . . Robots Hopped . | . . . . . Potential Cave-ins . | . . . . . Cave-ins Triggered . | . . . . . Exploration Rate (%) 42 | 3 91 53 63 3 Regions Visited 4 Branch Regions 2 Pre-discovered Areas 2 | . . . 2 . Known Exits Taken 3 | . 1 1 1 . Unknown Exits Taken 1 | 1 . . . . Scrap Searched 3 | . . 1 2 . Spaces Dug . | . . . . . Terrain Destroyed . | . . . . . Melee . | . . . . . Projectile . | . . . . . AOE . | . . . . . Terrain Rammed . | . . . . . Walls Destroyed . | . . . . . Machines Disabled . | . . . . . Actions | -11 -10 -10 -10 -8 --------- Run | Yrd Mat Min Sub Mat Total 2693 | 42 987 324 1329 11 Wait 145 | . 75 27 43 . Move 2273 | 34 792 269 1167 11 Hop . | . . . . . Pick Up 20 | 4 9 3 4 . Fast Attach 6 | . . 4 2 . Attach 9 | 4 1 2 2 . Detach . | . . . . . Swap 7 | . 2 3 2 . Drop 12 | . 4 5 3 . Fire 169 | . 83 9 77 . Melee 1 | . 1 . . . Ram . | . . . . . Kick 5 | . 3 2 . . Crush . | . . . . . Escape Stasis . | . . . . . Rewire 4 | . . . 4 . Trap . | . . . . . Miscellaneous 42 | . 17 . 25 . Route ------- -11/Scrapyard -10/Materials (discovered 4 exits: *Mat x3 / *Min) -10/Mines -10/Subcaves -8/Materials History --------- Turn | Location | Event 1 | -11/Scrapyard | Upgraded with Propulsion slot (x1) 4 | -11/Scrapyard | Discovered new exit (range 15) 38 | -11/Scrapyard | Entered Materials 216 | -10/Materials | Discovered new exit (range 14) 305 | -10/Materials | Build established: Mutant 358 | -10/Materials | Identified exit to Mines 418 | -10/Materials | Discovered new exit (range 7) 425 | -10/Materials | Identified exit to Materials 538 | -10/Materials | Derelicts attacked the area 645 | -10/Materials | Core integrity fell below 50% 659 | -10/Materials | Discovered exit to Materials (range 13) 835 | -10/Materials | Central database locked down 1091 | -10/Materials | Discovered exit to Materials (range 14) 1268 | -10/Materials | Entered Mines 1270 | -10/Mines | Reached level 2 1275 | -10/Mines | Received a Rocket Launcher from a helpful Derelict 1282 | -10/Mines | Upgraded with Utility slot (x1) 1282 | -10/Mines | Upgraded with Weapon slot (x1) 1290 | -10/Mines | Met a Derelict bent on vengeance 1439 | -10/Mines | Discovered new exit (range 7) 1448 | -10/Mines | Identified exit to Subcaves 1551 | -10/Mines | Met a Derelict who couldn't figure out how to use a Trap Extractor 1572 | -10/Mines | System corruption reached 10% 1655 | -10/Mines | Entered Subcaves 1657 | -10/Subcaves | Reached level 3 1660 | -10/Subcaves | Learned Materials terminal intel 1661 | -10/Subcaves | Upgraded with Utility slot (x1) 1926 | -10/Subcaves | Learned location of Storage (-9) 1965 | -10/Subcaves | A swath of the cavern ceiling suddenly collapsed 2145 | -10/Subcaves | Learned location of Zion (-6) 2145 | -10/Subcaves | Met a Zionite searching for "candidates" 2248 | -10/Subcaves | Disturbed a concealed Subdweller 2646 | -10/Subcaves | Build established: Scavenger-Mutant 2914 | -10/Subcaves | Core integrity fell below 20% 3023 | -10/Subcaves | Visited Clippyterm 3338 | -10/Subcaves | Discovered new exit (range 9) 3356 | -10/Subcaves | Identified exit to Materials 3357 | -10/Subcaves | Entered Materials 3358 | -8/Materials | Loaded intel: 12 terminal locations 3358 | -8/Materials | Core integrity fell below 50% 3358 | -8/Materials | Core integrity fell below 20% 3359 | -8/Materials | Reached level 4 3371 | -8/Materials | Self-destructed Last Messages --------------- 03253_ System corrupted: Matter fused (-8). 03277_ System corrupted: Matter fused (-7). 03287_ System corrupted: Battle Cannon jammed. 03292_ RA-PGX(R) knocked back. 03295_ RA-PGX(R) affixes Scrap Shield Fragment to Scrap Shield. 03302_ RA-PGX(R) knocked back. 03304_ System corrupted: Carbon-fiber Leg rejected. 03308_ RA-PGX(R) destroyed. 03335_ System corrupted: FCS attempts to trigger Battle Cannon. 03335_ System corrupted: Battle Cannon misfires. 03338_ EXIT=FOUND 03352_ System corrupted: Matter fused (-10). 03356_ EXIT=IDENTIFIED: MATERIALS LOCATION=MATERIALS GOAL=ESCAPE Loading Materials terminal intel (x12)... 03359_ Reached level 4. Map ----- +----------------------------------------------------+ | ?????????????????????????????????????????????????? | | ?????????????????????????????????????????????????? | | ?????????????????????????????????????????????????? | | ?????????????????????????????????????????????????? | | ?????????????????????????????????????????????????? | | ?????????????????????????????????????????????????? | | ?????????????????????????????????????????????????? | | ?????????????????????????????????????????????????? | | ?????????????????????????????????????T???????????? | | ?????????????????????????????????????????????????? | | ????????????????????????? ???????????????????? | | ????????????????????????? ??????????????????? | | ????????????????????????? ??????????????????? | | ????????????????????????? ??????????????????? | | ????????????????????????? #??????????????????? | | ?????????????????????????# #??????????????????? | | ?????????????????????????# #?????"""??????????? | | ?????????????????????????# #??????T"??????????? | | ?????????????????????????# #?????"""??????????? | | ?????????????????????????# #??????????????????? | | ??????????????#########??# #??????????????????? | | ??????????????? ?# #??????????????????? | | ???????????????? ?# #??????????????????? | | ??????????????????""" # #??????????????????? | | ?????????????????""""" # #??????????????????? | | ????????????????" """ @ #??????????????????? | | ????????????? # #??????????????????? | | ?????????????############# #??????????????????? | | ?????????????????????????# #??????????????????? | | ?????????????????????????# #??????????????????? | | ???""????????????????????# #??????????????????? | | ???"T????????????????????# #??????????????????? | | ???""????????????????????# #??????????????????? | | ?????????????????????????# #??????????????????? | | ?????????????????????????# #????????""????????? | | ?????????????????????????# #????????"T????????? | | ?????????????????????????######????????""????????? | | ?????????????????????????????????????????????????? | | ?????????????????????????????????????????????????? | | ?????????????????????????????????????????????????? | | ?????????????????????????????????????????????????? | | ?????????????????????????????????????????????????? | | ?????????????????????????????????????????????????? | | ?????????????????????????????????????????????????? | | ?????????????????????????????????????????????????? | | ?????????????????????????????????????????????????? | | ?????????????????????????????????????????????????? | | ?????????????????????????????????????????????????? | | ?????????????????????????????????????????????????? | | ?????????????????????????????????????????????????? | +----------------------------------------------------+ Best States ------------- Heat Dissipation 55 Energy Generation 15 Energy Capacity 200 Matter Stores 300 Matter Capacity 300 Sight Range 16 Terrain Scan Density 310 Armor Coverage 225 Evasion (%) 55 Offensive Hacking 10 Item Schematics ----------------- None Robot Schematics ------------------ None Fabricated ------------ Nothing Repaired ---------- Nothing Alien Tech Used ----------------- None Achievements -------------- None Challenges ------------ None RPGLIKE | -11 -10 -10 -10 -8 --------- Run | Yrd Mat Min Sub Mat Levels Raised 3 | . . 1 1 1 XP Earned 7645 | 3000 1145 1000 1000 1500 XP Spent 6000 | 3000 . 1450 1550 . Upgrades 24 | 5 . 7 12 . Propulsion Slot 1 | 1 . . . . Utility Slot 2 | . . 1 1 . Weapon Slot 1 | . . 1 . . Core Integrity 8 | . . . 8 . Heat Dissipation 5 | . . 5 . . Inventory Capacity 4 | 4 . . . . Terrain Scan Density 3 | . . . 3 . Protomatter Created 344 | . 162 . 182 . Integrity Restored 912 | . 366 . 546 . Core 912 | . 366 . 546 . Protomatter Decayed 65 | . 21 . 44 . Game ------ Seed ModifiedHypercooledScanner Manual? 0 Play Time 00:26:24 Cumulative 26.7 hours Start 2025.05.05 @ 21:19:13 End 2025.05.05 @ 21:46:11 Sessions 1 Manual Loads 0 Difficulty Rogue Special Mode Winter2019/RPGLIKE Game No. 47 Rogue 47 Adventurer 0 Explorer 0 Win Type - Total 0 Types 0/0/0/0/0/0/0/0/0/0 Lore% 9 Gallery% 22 Achievement% 21 Wizard Run 0 Options --------- Layout 2 ASCII 0 Keyboard 0 Movement Arrows Keybinds 0 Fullscreen 1 Font 24/Smallcaps Map View 50x44 Zoom Use 0% Tactical HUD 1 Map Filters NONE Filters NONE Steam 1 RUN: 7b73c411-0c67-4130-9e06-d7324d51893a